fUSD/lending_fUSD_20240220
["ID","MTS","AMOUNT","RATE_DAILY","PERIOD"]
[314561938,1708426243642,-500.0,0.00035616,2]
[314561939,1708426243651,-500.0,0.00035616,2]
[314561940,1708426243661,-1233.49,0.00035616,2]
[314561941,1708426243670,-500.0,0.00035616,2]
[314561942,1708426243679,-500.0,0.00035616,2]
[314561943,1708426243689,-500.0,0.00035616,2]
[314561944,1708426243698,-500.0,0.00035616,2]
[314561945,1708426243707,-999.77,0.00035616,2]
[314561946,1708426243716,-500.0,0.00035616,2]
[314561947,1708426243726,-500.0,0.00035616,2]
[314561948,1708426243737,-636.24,0.00035616,2]
[314561949,1708426243746,-500.0,0.00035616,2]
[314561950,1708426243755,-500.0,0.00035616,2]
[314561951,1708426243764,-500.0,0.00035616,2]
[314561952,1708426243774,-500.0,0.00035616,2]
[314561953,1708426243783,-500.0,0.00035616,2]
[314561954,1708426243792,-500.0,0.00035616,2]
[314561955,1708426243801,-500.0,0.00035616,2]
[314561956,1708426243810,-500.0,0.00035616,2]
[314561957,1708426243819,-1037.77,0.00035616,2]
[314561958,1708426243828,-500.0,0.00035616,2]
[314561959,1708426243838,-1085.44,0.00035616,2]
[314561960,1708426243847,-1555.87,0.00035616,2]
[314561961,1708426243856,-471.65298498,0.00035616,2]
[314561962,1708426243865,-500.0,0.00035616,2]
[314561963,1708426243874,-500.0,0.00035616,2]
[314561964,1708426243884,-654.48,0.00035616,2]
[314561965,1708426243893,-500.0,0.00035616,2]
[314561966,1708426243902,-500.0,0.00035616,2]
[314561967,1708426243911,-500.0,0.00035616,2]
[314561968,1708426243924,-500.0,0.00035616,2]
[314561969,1708426243934,-500.0,0.00035616,2]
[314561970,1708426243943,-1771.03,0.00035616,2]
[314561971,1708426243952,-500.0,0.00035616,2]
[314561972,1708426243962,-500.0,0.00035616,2]
[314561973,1708426243971,-6733.49,0.00035616,2]
[314561974,1708426243981,-930.2,0.00035616,2]
[314561975,1708426243992,-1017.02,0.00035616,2]
[314561976,1708426244003,-500.0,0.00035616,2]
[314561977,1708426244012,-500.0,0.00035616,2]
[314561978,1708426244021,-500.0,0.00035616,2]
[314561979,1708426244030,-500.0,0.00035616,2]
[314561980,1708426244040,-692.09,0.00035616,2]
[314561981,1708426244049,-549.74,0.00035616,2]
[314561982,1708426244059,-537.07515465,0.00035616,2]
[314561983,1708426244068,-500.0,0.00035616,2]
[314561984,1708426244077,-1914.98,0.00035616,2]
[314561985,1708426244086,-500.0,0.00035616,2]
[314561986,1708426244096,-500.0,0.00035616,2]
[314561987,1708426244105,-724.59,0.00035616,2]
[314561988,1708426244114,-500.0,0.00035616,2]
[314561989,1708426244123,-500.0,0.00035616,2]
[314561990,1708426244132,-2133.97,0.00035616,2]
[314561991,1708426244141,-500.0,0.00035616,2]
[314561992,1708426244150,-500.0,0.00035616,2]
[314561993,1708426244159,-500.0,0.00035616,2]
[314561994,1708426244168,-544.20267335,0.00035616,2]
[314561995,1708426244177,-954.36,0.00035616,2]
[314561996,1708426244186,-500.0,0.00035616,2]
[314561997,1708426244195,-500.0,0.00035616,2]
[314561998,1708426244205,-1063.66,0.00035616,2]
[314561999,1708426244215,-500.0,0.00035616,2]
[314562000,1708426244224,-500.0,0.00035616,2]
[314562001,1708426244234,-666.0,0.00035616,2]
[314562002,1708426244244,-3864.78,0.00035616,2]
[314562003,1708426244253,-689.84,0.00035616,2]
[314562004,1708426244262,-500.0,0.00035616,2]
[314562005,1708426244272,-500.0,0.00035616,2]
[314562006,1708426244280,-1286.87,0.00035616,2]
[314562007,1708426244290,-500.0,0.00035616,2]
[314562008,1708426244299,-500.0,0.00035616,2]
[314562009,1708426244308,-500.0,0.00035616,2]
[314562010,1708426244317,-2680.93,0.00035616,2]
[314562011,1708426244326,-737.9,0.00035616,2]
[314562012,1708426244335,-500.0,0.00035616,2]
[314562013,1708426244344,-500.0,0.00035616,2]
[314562014,1708426244354,-878.55,0.00035616,2]
[314562015,1708426244363,-822.74,0.00035616,2]
[314562016,1708426244373,-841.75,0.00035616,2]
[314562017,1708426244382,-500.0,0.00035616,2]
[314562018,1708426244392,-721.08,0.00035616,2]
[314562019,1708426244401,-3733.42,0.00035616,2]
[314562020,1708426244410,-545.30621924,0.00035616,2]
[314562021,1708426244419,-500.0,0.00035616,2]
[314562022,1708426244428,-500.0,0.00035616,2]
[314562023,1708426244438,-500.0,0.00035616,2]
[314562024,1708426244447,-708.1,0.00035616,2]
[314562025,1708426244456,-500.0,0.00035616,2]
[314562026,1708426244465,-757.09,0.00035616,2]
[314562027,1708426244474,-1715.72,0.00035616,2]
[314562028,1708426244484,-718.67,0.00035616,2]
[314562029,1708426244493,-796.03,0.00035616,2]
[314562030,1708426244502,-500.0,0.00035616,2]
[314562031,1708426244512,-1590.32,0.00035616,2]
[314562032,1708426244521,-1078.09,0.00035616,2]
[314562033,1708426244531,-500.0,0.00035616,2]
[314562034,1708426244541,-500.0,0.00035616,2]
[314562035,1708426244550,-674.11,0.00035616,2]
[314562036,1708426244559,-857.11,0.00035616,2]
[314562037,1708426244569,-500.0,0.00035616,2]
[314562038,1708426244578,-500.0,0.00035616,2]
[314562039,1708426244587,-500.0,0.00035616,2]
[314562040,1708426244596,-653.39,0.00035616,2]
[314562041,1708426244606,-1438.56,0.00035616,2]
[314562042,1708426244615,-622.80481296,0.00035616,2]
[314562043,1708426244624,-803.69,0.00035616,2]
[314562044,1708426244634,-2453.49,0.00035616,2]
[314562045,1708426244644,-1182.88,0.00035616,2]
[314562046,1708426244653,-1778.19,0.00035616,2]
[314562047,1708426244662,-500.0,0.00035616,2]
[314562048,1708426244671,-500.0,0.00035616,2]
[314562049,1708426244680,-500.0,0.00035616,2]
[314562050,1708426244690,-500.0,0.00035616,2]
[314562051,1708426244700,-1127.96,0.00035616,2]
[314562052,1708426244709,-780.41,0.00035616,2]
[314562053,1708426244718,-500.0,0.00035616,2]
[314562054,1708426244728,-500.0,0.00035616,2]
[314562055,1708426244737,-1028.84,0.00035616,2]
[314562056,1708426244746,-500.0,0.00035616,2]
[314562057,1708426244756,-500.0,0.00035616,2]
[314562058,1708426244765,-500.0,0.00035616,2]
[314562059,1708426244775,-777.46,0.00035616,2]
[314562060,1708426244784,-500.0,0.00035616,2]
[314562061,1708426244793,-500.0,0.00035616,2]
[314562062,1708426244803,-500.0,0.00035616,2]
[314562063,1708426244812,-918.3,0.00035616,2]
[314562064,1708426244821,-500.0,0.00035616,2]
[314562065,1708426244831,-500.0,0.00035616,2]
[314562066,1708426244840,-1253.01,0.00035616,2]
[314562067,1708426244849,-500.0,0.00035616,2]
[314562068,1708426244857,-851.37,0.00035616,2]
[314562069,1708426244866,-636.60246582,0.00035616,2]
[314562070,1708426244875,-500.0,0.00035616,2]
[314562071,1708426244884,-500.0,0.00035616,2]
[314562072,1708426244894,-5243.06,0.00035616,2]
[314562073,1708426244902,-1823.29,0.00035616,2]
[314562074,1708426244912,-500.0,0.00035616,2]
[314562075,1708426244923,-500.0,0.00035616,2]
[314562076,1708426244933,-500.0,0.00035616,2]
[314562077,1708426244942,-525.9,0.00035616,2]
[314562078,1708426244951,-4582.65,0.00035616,2]
[314562079,1708426244961,-2776.97,0.00035616,2]
[314562080,1708426244970,-8655.65,0.00035616,2]
[314562081,1708426244978,-500.0,0.00035616,2]
[314562082,1708426244988,-1138.21,0.00035616,2]
[314562083,1708426244998,-664.93,0.00035616,2]
[314562084,1708426245007,-519.98,0.00035616,2]
[314562085,1708426245016,-500.0,0.00035616,2]
[314562086,1708426245026,-500.0,0.00035616,2]
[314562087,1708426245035,-579.56,0.00035616,2]
[314562088,1708426245044,-500.0,0.00035616,2]
[314562089,1708426245053,-1281.58,0.00035616,2]
[314562090,1708426245062,-931.89,0.00035616,2]
[314562091,1708426245071,-735.17,0.00035616,2]
[314562092,1708426245080,-1426.19,0.00035616,2]
[314562093,1708426245090,-500.0,0.00035616,2]
[314562094,1708426245098,-1237.39,0.00035616,2]
[314562095,1708426245107,-500.0,0.00035616,2]
[314562096,1708426245116,-500.0,0.00035616,2]
[314562097,1708426245126,-500.0,0.00035616,2]
[314562098,1708426245135,-842.42,0.00035616,2]
[314562099,1708426245144,-500.0,0.00035616,2]
[314562100,1708426245153,-500.0,0.00035616,2]
[314562101,1708426245162,-500.0,0.00035616,2]
[314562102,1708426245171,-500.0,0.00035616,2]
[314562103,1708426245181,-500.0,0.00035616,2]
[314562104,1708426245191,-500.0,0.00035616,2]
[314562105,1708426245199,-500.0,0.00035616,2]
[314562106,1708426245208,-500.0,0.00035616,2]
[314562107,1708426245218,-587.56,0.00035616,2]
[314562108,1708426245227,-500.0,0.00035616,2]
[314562109,1708426245237,-677.09,0.00035616,2]
[314562110,1708426245246,-500.0,0.00035616,2]
[314562111,1708426245255,-500.0,0.00035616,2]
[314562112,1708426245264,-500.0,0.00035616,2]
[314562113,1708426245273,-1599.48,0.00035616,2]
[314562114,1708426245282,-500.0,0.00035616,2]
[314562115,1708426245291,-200.0,0.00035616,2]
[314562116,1708426245300,-500.0,0.00035616,2]
[314562117,1708426245309,-2062.35,0.00035616,2]
[314562118,1708426245319,-500.0,0.00035616,2]
[314562119,1708426245328,-500.0,0.00035616,2]
[314562120,1708426245337,-500.0,0.00035616,2]
[314562121,1708426245346,-530.02,0.00035616,2]
[314562122,1708426245355,-754.08,0.00035616,2]
[314562123,1708426245364,-527.64,0.00035616,2]
[314562124,1708426245373,-500.0,0.00035616,2]
[314562125,1708426245382,-500.0,0.00035616,2]
[314562126,1708426245392,-500.0,0.00035616,2]
[314562127,1708426245401,-500.0,0.00035616,2]
[314562128,1708426245410,-500.0,0.00035616,2]
[314562129,1708426245420,-525.89157885,0.00035616,2]
[314562130,1708426245429,-500.0,0.00035616,2]
[314562131,1708426245439,-535.1,0.00035616,2]
[314562132,1708426245448,-500.0,0.00035616,2]
[314562133,1708426245457,-500.0,0.00035616,2]
[314562134,1708426245466,-801.44,0.00035616,2]
[314562135,1708426245476,-500.0,0.00035616,2]
[314562136,1708426245487,-500.0,0.00035616,2]
[314562137,1708426245497,-500.0,0.00035616,2]
[314562138,1708426245507,-986.5,0.00035616,2]
[314562139,1708426245516,-500.0,0.00035616,2]
[314562140,1708426245525,-500.0,0.00035616,2]
[314562141,1708426245535,-905.35,0.00035616,2]
[314562142,1708426245544,-2452.44,0.00035616,2]
[314562143,1708426245553,-963.11,0.00035616,2]
[314562144,1708426245562,-985.45,0.00035616,2]
[314562145,1708426245571,-500.0,0.00035616,2]
[314562146,1708426245580,-500.0,0.00035616,2]
[314562147,1708426245589,-500.0,0.00035616,2]
[314562148,1708426245598,-500.0,0.00035616,2]
[314562149,1708426245608,-500.0,0.00035616,2]
[314562150,1708426245617,-500.0,0.00035616,2]
[314562151,1708426245626,-1054.19,0.00035616,2]
[314562152,1708426245635,-500.0,0.00035616,2]
[314562153,1708426245644,-500.0,0.00035616,2]
[314562154,1708426245653,-500.0,0.00035616,2]
[314562155,1708426245662,-714.09,0.00035616,2]
[314562156,1708426245670,-500.0,0.00035616,2]
[314562157,1708426245680,-500.0,0.00035616,2]
[314562158,1708426245690,-930.19,0.00035616,2]
[314562159,1708426245699,-500.0,0.00035616,2]
[314562160,1708426245710,-1107.36,0.00035616,2]
[314562161,1708426245719,-500.0,0.00035616,2]
[314562162,1708426245728,-951.76,0.00035616,2]
[314562163,1708426245739,-2554.24,0.00035616,2]
[314562164,1708426245749,-500.0,0.00035616,2]
[314562165,1708426245759,-500.0,0.00035616,2]
[314562166,1708426245769,-524.31,0.00035616,2]
[314562167,1708426245779,-500.0,0.00035616,2]
[314562168,1708426245789,-795.67,0.00035616,2]
[314562169,1708426245798,-4000.0,0.00035616,2]
[314562170,1708426245807,-1000.0,0.00035616,10]
[314562171,1708426245816,-1000.0,0.00035616,10]
[314562172,1708426245825,-1000.0,0.00035616,10]
[314562173,1708426245834,-1000.0,0.00035616,10]
[314562174,1708426245843,-1000.0,0.00035616,10]
[314562175,1708426245853,-1000.0,0.00035616,10]
[314562176,1708426245862,-1000.0,0.00035616,10]
[314562177,1708426245871,-1000.0,0.00035616,10]
[314562178,1708426245880,-1000.0,0.00035616,10]
[314562179,1708426245889,-1000.0,0.00035616,10]
[314562180,1708426245898,-1000.0,0.00035616,10]
[314562181,1708426245907,-1000.0,0.00035616,10]
[314562182,1708426245921,-1000.0,0.00035616,10]
[314562183,1708426245930,-1000.0,0.00035616,10]
[314562184,1708426245940,-1000.0,0.00035616,10]
[314562185,1708426245949,-255.0,0.00035616,10]
[314562186,1708426245959,-325.0,0.00035616,10]
[314562187,1708426245969,-9676.4150996,0.0003562,2]
[314562188,1708426245979,-266610.75679819,0.0003562,2]
[314562191,1708426246367,-8674.36216968,0.0003562,2]
[314562193,1708426246769,-34106.56603793,0.0003562,2]
[314562194,1708426246779,-211.14570055,0.0003562,2]
[314562195,1708426246788,-11862.4903157,0.0003562,2]
[314562196,1708426246798,-500.0,0.00035621,2]
[314562197,1708426246808,-500.0,0.00035621,2]
[314562198,1708426246818,-500.0,0.00035621,2]
[314562199,1708426246827,-500.0,0.00035621,2]
[314562200,1708426246837,-500.0,0.00035621,2]
[314562201,1708426246848,-292.7479,0.00035621,2]
[314562202,1708426246857,-1000.0,0.00035621,2]
[314562203,1708426246867,-1000.0,0.00035621,2]
[314562204,1708426246876,-1000.0,0.00035621,2]
[314562205,1708426246886,-1000.0,0.00035621,2]
[314562206,1708426246895,-1000.0,0.00035621,2]
[314562207,1708426246905,-1000.0,0.00035621,2]
[314562208,1708426246915,-1000.0,0.00035621,2]
[314562209,1708426246929,-1000.0,0.00035621,2]
[314562210,1708426246938,-1000.0,0.00035621,2]
[314562211,1708426246948,-1000.0,0.00035621,2]
[314562212,1708426246957,-1000.0,0.00035621,2]
[314562213,1708426246968,-1000.0,0.00035621,2]
[314562214,1708426246978,-1000.0,0.00035621,2]
[314562215,1708426246989,-1000.0,0.00035621,2]
[314562216,1708426246999,-1000.0,0.00035621,2]
[314562217,1708426247009,-1000.0,0.00035621,2]
[314562218,1708426247019,-779.5603,0.00035621,2]
[314562219,1708426247029,-500.0,0.00035621,2]
[314562220,1708426247039,-500.0,0.00035621,2]
[314562221,1708426247049,-500.0,0.00035621,2]
[314562222,1708426247058,-500.0,0.00035621,2]
[314562223,1708426247068,-500.0,0.00035621,2]
[314562224,1708426247077,-500.0,0.00035621,2]
[314562225,1708426247087,-501.5601,0.00035621,2]
[314562226,1708426247097,-12458.06609386,0.00035624,2]
[314562227,1708426247107,-177.58,0.00035644,2]
[314562228,1708426247117,-357.71222257,0.00035646,2]
[314562229,1708426247127,-151.0212031,0.00035648,2]
[314562230,1708426247136,-1122.87,0.00035695,2]
[314562231,1708426247146,-535.90876336,0.00035696,2]
[314562232,1708426247155,-350.58186207,0.000357,2]
[314562233,1708426247176,-881.82,0.000357,2]
[314562234,1708426247945,-500.0,0.00035616,2]
[314562235,1708426247955,-500.0,0.00035616,2]
[314562236,1708426247966,-500.0,0.00035616,2]
[314562237,1708426247975,-43.55841993,0.000357,2]
[314562238,1708426247985,-278.51565087,0.000357,2]
[314562239,1708426248635,-6703.87745913,0.000357,2]
[314562240,1708426248644,-1025.333155,0.000357,2]
[314562241,1708426248654,-1322.85605626,0.000357,2]
[314562242,1708426248665,-960.53292761,0.000357,2]
[314562243,1708426248681,-921.38286464,0.00035731,2]
[314562244,1708426248690,-1648.7056254,0.00035733,2]
[314562245,1708426248805,-500.0,0.00035616,2]
[314562246,1708426248814,-180.8989344,0.00035733,2]
[314562247,1708426248823,-463.8748508,0.00035733,2]
[314562248,1708426248835,-1634.25717788,0.00035733,2]
[314562249,1708426248845,-163.26,0.00035738,2]
[314562250,1708426248855,-151.0212031,0.00035748,2]
[314562251,1708426248864,-1660.67516711,0.0003579,8]
[314562252,1708426248873,-165.7390684,0.0003579,2]
[314562253,1708426248882,-1113.68,0.00035798,2]
[314562254,1708426248891,-162.38833905,0.00035799,2]
[314562255,1708426248901,-2360.58004446,0.00035799,2]
[314562256,1708426248927,-2619.31107797,0.00035799,2]
[314562257,1708426248936,-7752.439,0.000358,30]
[314562258,1708426248945,-150.607816,0.000358,2]
[314562259,1708426248954,-6581.18576027,0.00035808,2]
[314562260,1708426248967,-1040.66,0.00035808,2]
[314562261,1708426248978,-91.52393093,0.00035808,2]
[314562262,1708426248988,-152.0,0.00035833,3]
[314562263,1708426249001,-151.0212031,0.00035848,2]
[314562264,1708426249010,-490.03626025,0.00035867,2]
[314562265,1708426249533,-500.0,0.00035616,2]
[314562266,1708426249543,-632.83373975,0.00035867,2]
[314562267,1708426249552,-150.0,0.00035867,2]
[314562268,1708426249562,-150.0,0.00035883,2]
[314562269,1708426249573,-374.70754576,0.00035889,30]
[314562270,1708426249582,-285.06459475,0.0003589,3]
[314562271,1708426249592,-500.0,0.0003589,2]
[314562272,1708426249602,-500.0,0.0003589,2]
[314562273,1708426249611,-500.0,0.0003589,2]
[314562274,1708426249621,-500.0,0.0003589,2]
[314562275,1708426249630,-500.0,0.0003589,2]
[314562276,1708426249640,-500.0,0.0003589,2]
[314562277,1708426249649,-500.0,0.0003589,2]
[314562278,1708426249658,-549.98535097,0.0003589,2]
[314562279,1708426249667,-500.0,0.0003589,2]
[314562280,1708426249677,-500.0,0.0003589,2]
[314562281,1708426249686,-500.0,0.0003589,2]
[314562282,1708426249695,-500.0,0.0003589,2]
[314562283,1708426249705,-500.0,0.0003589,2]
[314562284,1708426249714,-500.0,0.0003589,2]
[314562285,1708426249723,-500.0,0.0003589,2]
[314562286,1708426249733,-500.0,0.0003589,2]
[314562287,1708426249743,-352.71536506,0.0003589,2]
[314562288,1708426249753,-500.0,0.0003589,2]
[314562289,1708426249761,-500.0,0.0003589,2]
[314562290,1708426249771,-500.0,0.0003589,2]
[314562291,1708426249779,-500.0,0.0003589,2]
[314562292,1708426249788,-500.0,0.0003589,2]
[314562293,1708426249798,-500.0,0.0003589,2]
[314562294,1708426249807,-500.0,0.0003589,2]
[314562295,1708426249816,-500.0,0.0003589,2]
[314562296,1708426249825,-500.0,0.0003589,2]
[314562297,1708426249835,-500.0,0.0003589,2]
[314562298,1708426249843,-500.0,0.0003589,2]
[314562299,1708426249853,-500.0,0.0003589,2]
[314562300,1708426249862,-475.72555642,0.0003589,2]
[314562301,1708426249871,-1000.0,0.0003589,2]
[314562302,1708426249880,-500.0,0.0003589,2]
[314562303,1708426249889,-500.0,0.0003589,2]
[314562304,1708426249899,-500.0,0.0003589,2]
[314562305,1708426249908,-500.0,0.0003589,2]
[314562306,1708426249921,-500.0,0.0003589,2]
[314562307,1708426249931,-500.0,0.0003589,2]
[314562308,1708426249940,-271.20425506,0.0003589,2]
[314562309,1708426249949,-500.0,0.0003589,2]
[314562310,1708426249958,-500.0,0.0003589,2]
[314562311,1708426249969,-500.0,0.0003589,2]
[314562312,1708426249978,-500.0,0.0003589,2]
[314562313,1708426249989,-500.0,0.0003589,2]
[314562314,1708426249999,-500.0,0.0003589,2]
[314562315,1708426250009,-569.98675314,0.0003589,2]
[314562316,1708426250019,-500.0,0.0003589,2]
[314562317,1708426250029,-521.21250847,0.0003589,2]
[314562318,1708426250038,-500.0,0.0003589,2]
[314562319,1708426250047,-500.0,0.0003589,2]
[314562320,1708426250057,-500.0,0.0003589,2]
[314562321,1708426250066,-500.0,0.0003589,2]
[314562322,1708426250076,-500.0,0.0003589,2]
[314562323,1708426250086,-500.0,0.0003589,2]
[314562324,1708426250097,-500.0,0.0003589,2]
[314562325,1708426250107,-500.0,0.0003589,2]
[314562326,1708426250116,-1236.1,0.0003589,2]
[314562327,1708426250126,-500.0,0.0003589,2]
[314562328,1708426250136,-500.0,0.0003589,2]
[314562329,1708426250145,-577.52950558,0.0003589,2]
[314562330,1708426250155,-642.65399866,0.0003589,2]
[314562331,1708426250164,-500.0,0.0003589,2]
[314562332,1708426250174,-500.0,0.0003589,2]
[314562333,1708426250184,-500.0,0.0003589,2]
[314562334,1708426250194,-500.0,0.0003589,2]
[314562335,1708426250203,-500.0,0.0003589,2]
[314562336,1708426250212,-500.0,0.0003589,2]
[314562337,1708426250222,-1104.51,0.0003589,2]
[314562338,1708426250231,-500.0,0.0003589,2]
[314562339,1708426250241,-500.0,0.0003589,2]
[314562340,1708426250250,-500.0,0.0003589,2]
[314562341,1708426250261,-582.77,0.0003589,2]
[314562342,1708426250271,-500.0,0.0003589,2]
[314562343,1708426250280,-500.0,0.0003589,2]
[314562344,1708426250290,-500.0,0.0003589,2]
[314562345,1708426250299,-500.0,0.0003589,2]
[314562346,1708426250308,-500.0,0.0003589,2]
[314562347,1708426250319,-500.0,0.0003589,2]
[314562348,1708426250328,-500.0,0.0003589,2]
[314562349,1708426250338,-500.0,0.0003589,2]
[314562350,1708426250347,-500.0,0.0003589,2]
[314562351,1708426250357,-500.0,0.0003589,2]
[314562352,1708426250366,-500.0,0.0003589,2]
[314562353,1708426250376,-500.0,0.0003589,2]
[314562354,1708426250386,-500.0,0.0003589,2]
[314562355,1708426250395,-500.0,0.0003589,2]
[314562356,1708426250405,-500.0,0.0003589,2]
[314562357,1708426250415,-500.0,0.0003589,2]
[314562358,1708426250425,-500.0,0.0003589,2]
[314562359,1708426250434,-500.0,0.0003589,2]
[314562360,1708426250443,-500.0,0.0003589,2]
[314562361,1708426250453,-500.0,0.0003589,2]
[314562362,1708426250463,-500.0,0.0003589,2]
[314562363,1708426250473,-500.0,0.0003589,2]
[314562364,1708426250482,-500.0,0.0003589,2]
[314562365,1708426250492,-500.0,0.0003589,2]
[314562366,1708426250501,-500.0,0.0003589,2]
[314562367,1708426250511,-500.0,0.0003589,2]
[314562368,1708426250520,-500.0,0.0003589,2]
[314562369,1708426250583,-531.11,0.0003589,2]
[314562370,1708426250594,-557.06736994,0.0003589,2]
[314562371,1708426250603,-500.0,0.0003589,2]
[314562372,1708426250613,-539.29053896,0.0003589,2]
[314562373,1708426250623,-1000.0,0.0003589,7]
[314562374,1708426250632,-500.0,0.0003589,2]
[314562375,1708426250641,-500.0,0.0003589,2]
[314562376,1708426250651,-600.59,0.0003589,2]
[314562377,1708426250660,-500.0,0.0003589,2]
[314562378,1708426250669,-500.0,0.0003589,2]
[314562379,1708426250680,-500.0,0.0003589,2]
[314562380,1708426250690,-500.0,0.0003589,2]
[314562381,1708426250699,-500.0,0.0003589,2]
[314562382,1708426250708,-500.0,0.0003589,2]
[314562383,1708426250717,-566.33430895,0.0003589,2]
[314562384,1708426250726,-500.0,0.0003589,2]
[314562385,1708426250737,-500.0,0.0003589,2]
[314562386,1708426250746,-500.0,0.0003589,2]
[314562387,1708426250755,-500.0,0.0003589,2]
[314562388,1708426250765,-500.0,0.0003589,2]
[314562389,1708426250774,-500.0,0.0003589,2]
[314562390,1708426250784,-500.0,0.0003589,2]
[314562391,1708426250793,-500.0,0.0003589,2]
[314562392,1708426250802,-500.0,0.0003589,2]
[314562393,1708426250811,-500.0,0.0003589,2]
[314562394,1708426250821,-500.0,0.0003589,2]
[314562395,1708426250830,-500.0,0.0003589,2]
[314562396,1708426250839,-500.0,0.0003589,2]
[314562397,1708426250849,-500.0,0.0003589,2]
[314562398,1708426250858,-500.0,0.0003589,2]
[314562399,1708426250867,-500.0,0.0003589,2]
[314562400,1708426250877,-500.0,0.0003589,2]
[314562401,1708426250886,-550.23,0.0003589,2]
[314562402,1708426250895,-500.0,0.0003589,2]
[314562403,1708426250905,-555.48103695,0.0003589,2]
[314562404,1708426250915,-500.0,0.0003589,2]
[314562405,1708426250927,-523.30952919,0.0003589,2]
[314562406,1708426250936,-500.0,0.0003589,2]
[314562407,1708426250945,-500.0,0.0003589,2]
[314562408,1708426250955,-500.0,0.0003589,2]
[314562409,1708426250964,-500.0,0.0003589,2]
[314562410,1708426250974,-500.0,0.0003589,2]
[314562411,1708426250983,-500.0,0.0003589,2]
[314562412,1708426250994,-500.0,0.0003589,2]
[314562413,1708426251003,-581.76964779,0.0003589,2]
[314562414,1708426251013,-500.0,0.0003589,2]
[314562415,1708426251022,-500.0,0.0003589,2]
[314562416,1708426251032,-500.0,0.0003589,2]
[314562417,1708426251041,-500.0,0.0003589,2]
[314562418,1708426251051,-500.0,0.0003589,2]
[314562419,1708426251060,-500.0,0.0003589,2]
[314562420,1708426251069,-500.0,0.0003589,2]
[314562421,1708426251079,-500.0,0.0003589,2]
[314562422,1708426251087,-510.89,0.0003589,2]
[314562423,1708426251096,-500.0,0.0003589,2]
[314562424,1708426251105,-553.64,0.0003589,2]
[314562425,1708426251114,-500.0,0.0003589,2]
[314562426,1708426251123,-802.7,0.0003589,2]
[314562427,1708426251132,-500.0,0.0003589,2]
[314562428,1708426251141,-500.0,0.0003589,2]
[314562429,1708426251150,-500.0,0.0003589,2]
[314562430,1708426251160,-500.0,0.0003589,2]
[314562431,1708426251169,-500.0,0.0003589,2]
[314562432,1708426251178,-500.0,0.0003589,2]
[314562433,1708426251187,-500.0,0.0003589,2]
[314562434,1708426251196,-505.28,0.0003589,2]
[314562435,1708426251205,-500.0,0.0003589,2]
[314562436,1708426251214,-500.0,0.0003589,2]
[314562437,1708426251223,-500.0,0.0003589,2]
[314562438,1708426251232,-500.0,0.0003589,2]
[314562439,1708426251242,-500.0,0.0003589,2]
[314562440,1708426251252,-500.0,0.0003589,2]